bitfinex-derivatives/quotes_SOLF0:USTF0_20250426
["timestamp","ask_amount","ask_price","bid_price","bid_amount"]
[1745671782902,5.28978001,148.27,148.23,5.28978001]
[1745671783906,6.7432,148.25,148.23,5.28978001]
[1745671786308,6.7429,148.26,148.23,5.28978001]
[1745671787010,6.7433,148.25,148.23,5.28978001]
[1745671788417,6.7436,148.24,148.23,5.28978001]
[1745671789318,6.7444,148.23,148.22,5.28978001]
[1745671789516,6.7444,148.23,148.2,25.22]
[1745671789716,6.7444,148.23,148.21,5.28978001]
[1745671791120,6.7439,148.24,148.21,12.03468001]
[1745671791319,6.7439,148.24,148.22,5.28978001]
[1745671791521,2.0137,148.26,148.23,5.28978001]
[1745671791719,1.9487,148.27,148.24,5.28978001]
[1745671791919,6.7433,148.25,148.24,5.28978001]
[1745671795121,6.7429,148.26,148.24,5.28978001]
[1745671795321,6.7429,148.26,148.23,5.28978001]
[1745671795723,1.9487,148.27,148.23,5.28978001]
[1745671796021,6.7428,148.26,148.23,5.28978001]
[1745671796423,1.9487,148.27,148.23,5.28978001]
[1745671796424,6.7432,148.25,148.23,5.28978001]
[1745671796916,5.28978001,148.26,148.2,25.22]
[1745671797220,6.7439,148.24,148.21,5.28978001]
[1745671797822,6.7441,148.23,148.21,5.28978001]
[1745671798221,5.28978001,148.26,148.21,12.03468001]
[1745671798724,7.23848001,148.27,148.22,5.28978001]
[1745671799223,6.7435,148.25,148.22,5.28978001]
[1745671799724,6.7435,148.25,148.23,5.28978001]
[1745671800525,5.28978001,148.26,148.22,5.28978001]
[1745671800920,6.7437,148.24,148.22,5.28978001]
[1745671802326,6.7441,148.23,148.22,5.28978001]
[1745671803119,6.7441,148.23,148.21,5.28978001]
[1745671806125,6.7445,148.22,148.21,5.28978001]
[1745671806424,6.7445,148.22,148.2,5.28978001]
[1745671807630,6.7442,148.23,148.2,5.28978001]
[1745671807926,30.50978001,148.25,148.2,5.28978001]
[1745671808529,5.28978001,148.24,148.2,5.28978001]
[1745671809030,6.7454,148.21,148.2,5.28978001]
[1745671809327,25.22,148.25,148.19,5.28978001]
[1745671809328,5.28978001,148.23,148.19,5.28978001]
[1745671809627,6.7457,148.2,148.19,5.28978001]
[1745671809928,5.28978001,148.23,148.19,5.28978001]
[1745671810228,6.7452,148.21,148.19,5.28978001]
[1745671811230,6.7454,148.2,148.19,5.28978001]
[1745671811428,5.28978001,148.23,148.19,5.28978001]
[1745671811829,6.7451,148.21,148.19,5.28978001]
[1745671813429,6.7446,148.22,148.19,5.28978001]
[1745671813627,6.7446,148.22,148.2,5.28978001]
[1745671813822,30.50978001,148.25,148.21,5.28978001]
[1745671814730,6.7445,148.23,148.21,5.28978001]
[1745671814933,30.50978001,148.25,148.2,5.28978001]
[1745671815132,30.50978001,148.25,148.21,5.28978001]
[1745671816226,6.7445,148.22,148.21,5.28978001]
[1745671816428,6.7445,148.22,148.2,5.28978001]
[1745671816623,6.7445,148.22,148.21,5.28978001]
[1745671817728,6.7445,148.22,148.2,5.28978001]
[1745671817933,6.745,148.21,148.2,5.28978001]
[1745671818431,5.28978001,148.24,148.2,5.28978001]
[1745671818630,6.7447,148.22,148.2,5.28978001]
[1745671818835,5.28978001,148.23,148.17,6.7466]
[1745671819029,5.28978001,148.23,148.19,5.28978001]
[1745671820032,6.7454,148.2,148.19,5.28978001]
[1745671821735,6.7452,148.21,148.19,5.28978001]
[1745671823135,6.7454,148.2,148.19,5.28978001]
[1745671835743,6.7466,148.18,148.16,25.22]
[1745671835934,6.7466,148.18,148.17,5.28978001]
[1745671838938,6.7468,148.17,148.16,30.50978001]
[1745671839145,5.28978001,148.2,148.15,5.28978001]
[1745671839441,5.28978001,148.19,148.15,5.28978001]
[1745671839639,5.28978001,148.18,148.14,5.28978001]
[1745671839838,5.28978001,148.17,148.13,5.28978001]
[1745671840141,6.7482,148.14,148.13,5.28978001]
[1745671840545,5.28978001,148.17,148.12,5.28978001]
[1745671840733,5.28978001,148.16,148.12,5.28978001]
[1745671841239,5.28978001,148.14,148.07,25.2]
[1745671841441,5.28978001,148.14,148.1,5.28978001]
[1745671841742,5.28978001,148.15,148.1,5.28978001]
[1745671841941,5.28978001,148.14,148.1,5.28978001]
[1745671842245,6.7493,148.12,148.1,5.28978001]
[1745671844345,6.7493,148.12,148.07,31.9511]
[1745671844546,5.28978001,148.13,148.09,5.28978001]
[1745671845342,6.7498,148.11,148.09,5.28978001]
[1745671845543,6.7498,148.11,148.08,5.28978001]
[1745671846649,6.7492,148.12,148.08,5.28978001]
[1745671846846,6.7492,148.12,148.09,5.28978001]
[1745671847040,6.7492,148.12,148.1,5.28978001]
[1745671847341,30.46978001,148.13,148.08,5.28978001]
[1745671847547,5.28978001,148.12,148.08,5.28978001]
[1745671848146,6.7503,148.1,148.08,5.28978001]
[1745671848353,30.46978001,148.13,148.08,5.28978001]
[1745671848651,25.18,148.13,148.1,5.28978001]
[1745671848854,6.7494,148.12,148.1,5.28978001]
[1745671849050,25.18,148.13,148.11,5.28978001]
[1745671849450,31.9286,148.13,148.11,5.28978001]
[1745671849755,25.18,148.13,148.11,5.28978001]
[1745671850053,6.7486,148.14,148.11,5.28978001]
[1745671850248,5.28978001,148.13,148.05,25.18]
[1745671850446,6.75,148.1,148.08,5.28978001]
[1745671850855,6.75,148.1,148.07,5.28978001]
[1745671851056,4.0069,148.15,148.09,5.28978001]
[1745671851057,5.28978001,148.13,148.09,5.28978001]
[1745671851448,5.28978001,148.12,148.08,5.28978001]
[1745671851754,6.7502,148.1,148.08,5.28978001]
[1745671851957,5.28978001,148.12,148.05,25.18]
[1745671851958,5.28978001,148.11,148.07,5.28978001]
[1745671852152,6.7507,148.09,148.06,5.28978001]
[1745671852351,5.28978001,148.11,148.07,5.28978001]
[1745671852549,6.7503,148.1,148.07,5.28978001]
[1745671852957,5.28978001,148.11,148.07,5.28978001]
[1745671853258,6.7509,148.08,148.07,5.28978001]
[1745671854157,6.7505,148.09,148.07,5.28978001]
[1745671854458,5.28978001,148.11,148.07,5.28978001]
[1745671854757,6.7506,148.09,148.07,5.28978001]
[1745671855357,6.7502,148.1,148.07,5.28978001]
[1745671855860,6.7508,148.09,148.07,5.28978001]
[1745671857757,6.7508,148.09,148.05,25.18]
[1745671857958,6.7508,148.09,148.07,5.28978001]
[1745671860960,6.7501,148.1,148.08,5.28978001]
[1745671861262,6.7501,148.1,148.05,25.18]
[1745671861460,6.7501,148.1,148.08,5.28978001]
[1745671863562,6.7497,148.11,148.08,12.04068001]
[1745671863762,4.0069,148.15,148.1,5.28978001]
[1745671863962,4.0069,148.15,148.12,5.28978001]
[1745671865258,6.7486,148.14,148.12,5.28978001]
[1745671865461,6.7486,148.14,148.11,5.28978001]
[1745671866560,6.7486,148.14,148.11,12.03918001]
[1745671866762,6.7479,148.15,148.12,5.28978001]
[1745671867563,6.7473,148.16,148.14,5.28978001]
[1745671868169,29.1273,148.19,148.15,5.28978001]
[1745671868364,29.1273,148.19,148.17,5.28978001]
[1745671868567,2.0289,148.2,148.18,5.28978001]
[1745671868864,30.46978001,148.23,148.18,5.28978001]
[1745671869063,5.28978001,148.23,148.19,5.28978001]
[1745671869264,6.7454,148.2,148.19,5.28978001]
[1745671869566,5.28978001,148.22,148.18,5.28978001]
[1745671870461,5.28978001,148.21,148.16,5.28978001]
[1745671870662,5.28978001,148.19,148.15,5.28978001]
[1745671871367,6.7471,148.17,148.15,5.28978001]
[1745671871568,5.28978001,148.18,148.14,5.28978001]
[1745671872465,6.7472,148.17,148.14,5.28978001]
[1745671875872,6.7473,148.16,148.14,5.28978001]
[1745671876068,5.28978001,148.17,148.13,30.46978001]
[1745671876273,5.28978001,148.17,148.13,5.28978001]
[1745671876573,6.7481,148.15,148.13,5.28978001]
[1745671877474,6.7481,148.15,148.12,5.28978001]
[1745671878176,32.40788001,148.2,148.14,5.28978001]
[1745671878380,27.1181,148.2,148.16,5.28978001]
[1745671878677,25.18,148.2,148.18,5.28978001]
[1745671878869,3.9191,148.21,148.19,5.28978001]
[1745671879778,6.7448,148.22,148.19,5.28978001]
[1745671879976,5.28978001,148.23,148.19,5.28978001]
[1745671880674,5.28978001,148.22,148.19,5.28978001]
[1745671880880,6.745,148.21,148.19,5.28978001]
[1745671881479,6.7447,148.22,148.19,5.28978001]
[1745671881681,25.16,148.24,148.21,5.28978001]
[1745671882082,6.7444,148.23,148.21,5.28978001]
[1745671882282,6.7444,148.23,148.2,5.28978001]
[1745671883884,6.7437,148.24,148.2,12.03498001]
[1745671884084,5.28978001,148.25,148.2,12.03498001]
[1745671884382,5.28978001,148.25,148.2,5.28978001]
[1745671885382,6.7444,148.23,148.2,5.28978001]
[1745671885590,5.28978001,148.24,148.2,5.28978001]
[1745671886588,6.7442,148.23,148.2,5.28978001]
[1745671889392,6.7446,148.22,148.2,5.28978001]
[1745671890391,6.7442,148.23,148.2,5.28978001]
[1745671891993,6.7442,148.23,148.2,12.03518001]
[1745671892393,6.7442,148.23,148.2,5.28978001]
[1745671892593,6.7447,148.22,148.2,5.28978001]
[1745671892791,5.28978001,148.25,148.2,5.28978001]
[1745671892989,9.31508001,148.26,148.21,5.28978001]
[1745671893594,6.7443,148.23,148.21,5.28978001]
[1745671897796,6.7443,148.23,148.22,5.28978001]
[1745671899497,6.7437,148.24,148.22,5.28978001]
[1745671900599,6.7437,148.24,148.21,5.28978001]
[1745671903404,6.7433,148.25,148.22,5.28978001]
[1745671903606,6.7433,148.25,148.23,5.28978001]
[1745671904796,6.7436,148.24,148.23,5.28978001]
[1745671904993,6.7436,148.24,148.22,5.28978001]
[1745671905392,6.7441,148.23,148.21,5.28978001]
[1745671905591,5.28978001,148.24,148.19,5.28978001]
[1745671905897,6.7459,148.19,148.17,5.28978001]
[1745671906096,5.28978001,148.21,148.16,30.40978001]
[1745671906401,5.28978001,148.2,148.16,30.40978001]
[1745671906601,5.28978001,148.21,148.16,30.40978001]
[1745671906902,5.28978001,148.21,148.16,37.15698001]
[1745671907201,25.12,148.23,148.18,5.28978001]
[1745671907400,30.40978001,148.23,148.19,5.28978001]
[1745671907599,12.03478001,148.21,148.17,5.28978001]
[1745671909001,12.03478001,148.21,148.17,12.03648001]
[1745671910697,6.745,148.21,148.18,6.7463]
[1745671911902,12.03478001,148.21,148.18,6.7463]
[1745671913503,12.03478001,148.21,148.17,12.03638001]
[1745671914303,12.03478001,148.21,148.18,6.7463]
[1745671914705,6.7454,148.2,148.17,12.03638001]
[1745671915105,5.28978001,148.21,148.17,5.28978001]
[1745671915301,5.28978001,148.2,148.16,30.40978001]
[1745671915505,5.28978001,148.2,148.16,25.12]
[1745671915907,6.746,148.19,148.16,25.12]
[1745671916707,6.746,148.19,148.16,31.8672]
[1745671918106,6.746,148.19,148.17,6.7467]
[1745671918405,12.03538001,148.2,148.17,6.7467]
[1745671918607,6.7456,148.2,148.17,6.7467]
[1745671919304,12.03478001,148.21,148.18,6.7463]
[1745671919505,5.28978001,148.22,148.17,5.28978001]
[1745671919803,5.28978001,148.21,148.16,30.40978001]
[1745671920010,6.7463,148.19,148.16,37.15688001]
[1745671920606,12.03538001,148.2,148.17,6.7468]
[1745671920805,6.7456,148.2,148.17,6.7468]
[1745671922908,6.7456,148.2,148.17,12.03658001]
[1745671923709,6.7461,148.19,148.17,5.28978001]
[1745671924014,5.28978001,148.2,148.16,30.40978001]
[1745671924208,6.7461,148.19,148.16,37.15678001]
[1745671928914,6.7456,148.2,148.17,12.03658001]
[1745671932720,12.03488001,148.21,148.17,12.03658001]
[1745671933619,25.12,148.23,148.2,5.28978001]
[1745671933819,5.28978001,148.25,148.21,5.28978001]
[1745671934121,6.7439,148.24,148.21,5.28978001]
[1745671935018,6.7442,148.23,148.21,5.28978001]
[1745671935222,6.7442,148.23,148.2,5.28978001]
[1745671936521,6.7435,148.25,148.22,5.28978001]
[1745671936818,6.7435,148.25,148.23,5.28978001]
[1745671937022,6.7435,148.25,148.22,5.28978001]
[1745671938121,6.7437,148.24,148.21,5.28978001]
[1745671938722,6.7437,148.24,148.2,37.13508001]
[1745671939324,6.7437,148.24,148.21,6.7449]
[1745671939518,12.03318001,148.25,148.21,12.03468001]
[1745671939719,6.7434,148.25,148.21,12.03468001]
[1745671940224,6.7429,148.26,148.22,12.03418001]
[1745671941324,12.03218001,148.27,148.23,6.7437]
[1745671941525,6.7424,148.27,148.24,5.28978001]
[1745671943916,27.1805,148.29,148.2,25.1]
[1745671943917,30.38978001,148.29,148.25,5.28978001]
[1745671944228,4.0232,148.31,148.28,5.28978001]
[1745671944528,25.1,148.32,148.29,5.28978001]
[1745671944926,6.7399,148.33,148.29,12.03108001]
[1745671945429,6.7393,148.34,148.31,5.28978001]
[1745671945623,30.38978001,148.35,148.31,5.28978001]
[1745671946119,3.9498,148.36,148.34,5.28978001]
[1745671946324,94.17428738,148.38,148.34,5.28978001]
[1745671946627,6.7381,148.37,148.34,5.28978001]
[1745671946821,63.78450737,148.38,148.35,5.28978001]
[1745671947629,69.07428738,148.38,148.33,30.38978001]
[1745671947930,5.28978001,148.37,148.33,30.38978001]
[1745671948325,5.28978001,148.37,148.33,5.28978001]
[1745671948530,5.28978001,148.35,148.32,25.08]
[1745671948725,6.7391,148.34,148.32,25.08]
[1745671948925,5.28978001,148.35,148.31,5.28978001]
[1745671949430,5.28978001,148.35,148.29,31.821]
[1745671949626,5.28978001,148.35,148.3,5.28978001]
[1745671949929,5.28978001,148.34,148.29,30.36978001]
[1745671950132,5.28978001,148.33,148.28,5.28978001]
[1745671951232,6.7406,148.31,148.28,5.28978001]
[1745671951529,5.28978001,148.33,148.28,5.28978001]
[1745671951734,5.28978001,148.34,148.3,5.28978001]
[1745671952040,12.02918001,148.34,148.3,12.03068001]
[1745671952239,5.28978001,148.35,148.31,5.28978001]
[1745671952436,7.24348001,148.36,148.31,5.28978001]
[1745671952739,6.7389,148.35,148.31,5.28978001]
[1745671953534,6.7391,148.34,148.31,5.28978001]
[1745671953943,6.7391,148.34,148.3,6.7405]
[1745671953944,6.7396,148.33,148.29,6.7412]
[1745671954340,5.28978001,148.34,148.3,5.28978001]
[1745671954539,6.74,148.32,148.3,5.28978001]
[1745671954840,5.28978001,148.34,148.3,5.28978001]
[1745671955043,12.02918001,148.34,148.3,12.03068001]
[1745671956045,25.08,148.37,148.32,5.28978001]
[1745671956248,5.28978001,148.36,148.32,5.28978001]
[1745671957145,5.28978001,148.36,148.31,5.28978001]
[1745671957446,5.28978001,148.36,148.31,12.02988001]
[1745671957746,6.7398,148.33,148.3,5.28978001]
[1745671959047,6.74,148.32,148.3,5.28978001]
[1745671959438,6.74,148.32,148.29,12.03088001]
[1745671960751,6.7396,148.33,148.3,6.7408]
[1745671961943,6.7404,148.31,148.28,12.03148001]
[1745671962450,6.7404,148.31,148.28,5.28978001]
[1745671963051,6.7404,148.31,148.28,12.03148001]
[1745671965451,6.7401,148.32,148.28,12.03148001]
[1745671965652,5.28978001,148.34,148.3,5.28978001]
[1745671966052,5.28978001,148.35,148.31,5.28978001]
[1745671966352,6.7394,148.34,148.31,12.02988001]
[1745671968848,6.7394,148.34,148.32,5.28978001]
[1745671969257,6.7388,148.35,148.32,12.02968001]
[1745671969557,6.7388,148.35,148.32,5.28978001]
[1745671970350,5.28978001,148.33,148.15,13.4953]
[1745671970555,5.28978001,148.3,148.26,5.28978001]
[1745671970952,5.28978001,148.31,148.27,5.28978001]
[1745671971555,6.7412,148.3,148.27,5.28978001]
[1745671972059,3.9676,148.34,148.19,6.7456]
[1745671972060,6.7444,148.23,148.19,6.7456]
[1745671972359,5.28978001,148.25,148.2,5.28978001]
[1745671972560,5.28978001,148.25,148.21,5.28978001]
[1745671974059,5.28978001,148.25,148.2,30.34978001]
[1745671974359,6.7448,148.22,148.2,30.34978001]
[1745671975056,5.28978001,148.24,148.2,25.06]
[1745671976359,6.7449,148.22,148.2,25.06]
[1745671979663,6.745,148.21,148.2,25.06]
[1745671980464,6.7447,148.22,148.2,25.06]
[1745671981364,6.745,148.21,148.2,25.06]
[1745671981963,5.28978001,148.24,148.2,25.06]
[1745671982764,6.7442,148.23,148.2,25.06]
[1745671983568,6.7446,148.22,148.2,25.06]
[1745671987264,6.745,148.21,148.2,25.06]
[1745671987469,6.0458,148.27,148.16,30.36978001]
[1745671987663,5.28978001,148.24,148.19,5.28978001]
[1745671987864,5.28978001,148.25,148.2,5.28978001]
[1745671988065,5.28978001,148.26,148.21,5.28978001]
[1745671988267,5.28978001,148.26,148.22,5.28978001]
[1745671988763,6.7439,148.24,148.22,5.28978001]
[1745671988970,6.7439,148.24,148.21,5.28978001]
[1745671990470,12.03308001,148.25,148.21,12.03478001]
[1745671991074,9.22778001,148.27,148.23,5.28978001]
[1745671991266,30.34978001,148.28,148.24,5.28978001]
[1745671991463,5.28978001,148.28,148.24,5.28978001]
[1745671992368,6.7428,148.26,148.23,12.03348001]
[1745671992872,6.7428,148.26,148.23,5.28978001]
[1745671994766,25.08,148.31,148.25,5.28978001]
[1745671994971,5.28978001,148.29,148.25,5.28978001]
[1745671995371,5.28978001,148.27,148.24,25.04]
[1745671995969,6.7428,148.26,148.24,25.04]
[1745671996164,5.28978001,148.27,148.24,25.04]
[1745671996873,12.03218001,148.27,148.24,25.04]
[1745671997274,5.28978001,148.27,148.24,25.04]
[1745671998177,12.03218001,148.27,148.24,25.04]
[1745671999982,12.03218001,148.27,148.24,31.7836]
[1745672000481,12.03218001,148.27,148.24,25.04]
[1745672001280,6.7424,148.27,148.24,30.32978001]
[1745672002487,6.7428,148.26,148.24,30.32978001]
[1745672002681,5.28978001,148.27,148.24,25.04]
[1745672002882,5.28978001,148.27,148.23,5.28978001]
[1745672003083,5.28978001,148.26,148.22,5.28978001]
[1745672003280,5.28978001,148.26,148.21,30.32978001]
[1745672003885,6.7439,148.24,148.21,30.32978001]
[1745672004387,6.7433,148.25,148.21,37.07468001]
[1745672005388,6.7433,148.25,148.22,12.03428001]
[1745672006688,12.03228001,148.27,148.23,6.7439]
[1745672006888,12.03228001,148.27,148.23,12.03368001]
[1745672007088,5.28978001,148.27,148.23,12.03368001]
[1745672008294,6.7428,148.26,148.23,12.03368001]
[1745672008493,6.7428,148.26,148.23,5.28978001]
[1745672008992,6.7428,148.26,148.22,12.03408001]
[1745672009190,5.28978001,148.27,148.22,12.03408001]
[1745672009791,6.7429,148.26,148.23,6.744]
[1745672010091,5.28978001,148.28,148.23,5.28978001]
[1745672010897,6.7425,148.27,148.23,5.28978001]
[1745672011189,5.28978001,148.28,148.23,5.28978001]
[1745672011693,5.28978001,148.27,148.23,12.03368001]
[1745672012486,12.03248001,148.27,148.23,12.03368001]
[1745672014394,12.03248001,148.27,148.24,6.7436]
[1745672014692,6.7427,148.27,148.24,12.03338001]
[1745672017193,12.03168001,148.28,148.24,12.03338001]
[1745672017393,12.03168001,148.28,148.25,6.7431]
[1745672017893,12.03168001,148.28,148.24,5.28978001]
[1745672018192,12.03168001,148.28,148.25,5.28978001]
[1745672018893,6.7424,148.27,148.25,5.28978001]
[1745672019193,5.28978001,148.28,148.24,5.28978001]
[1745672019393,6.7428,148.26,148.23,5.28978001]
[1745672020194,6.7424,148.27,148.24,5.28978001]
[1745672020393,6.7424,148.27,148.25,5.28978001]
[1745672020892,6.7427,148.26,148.25,5.28978001]
[1745672021094,6.7427,148.26,148.24,5.28978001]
[1745672021794,6.7432,148.25,148.24,5.28978001]
[1745672022493,6.743,148.26,148.24,5.28978001]
[1745672025693,5.28978001,148.3,148.25,5.28978001]
[1745672025898,5.28978001,148.3,148.26,5.28978001]
[1745672026996,6.7414,148.29,148.26,5.28978001]
[1745672028199,6.7419,148.28,148.26,5.28978001]
[1745672029196,6.7415,148.29,148.26,5.28978001]
[1745672029896,6.7411,148.3,148.27,5.28978001]
[1745672031796,6.7414,148.29,148.27,5.28978001]
[1745672033998,6.7414,148.29,148.26,12.03228001]
[1745672034795,6.7414,148.29,148.26,5.28978001]
[1745672036088,6.7419,148.28,148.26,5.28978001]
[1745672039506,5.28978001,148.3,148.26,12.03238001]
[1745672039800,5.28978001,148.3,148.26,5.28978001]
[1745672042206,6.7416,148.29,148.26,5.28978001]
[1745672042505,6.7416,148.29,148.26,12.03238001]
[1745672043404,6.7416,148.29,148.27,5.28978001]
[1745672043807,6.741,148.3,148.28,5.28978001]
[1745672045803,6.741,148.3,148.27,6.7422]
[1745672046008,6.741,148.3,148.27,5.28978001]
[1745672048809,5.28978001,148.31,148.26,5.28978001]
[1745672049105,5.28978001,148.28,148.24,5.28978001]
[1745672049310,5.28978001,148.26,148.21,30.30978001]
[1745672049703,6.7441,148.23,148.21,25.02]
[1745672050504,5.28978001,148.25,148.21,25.02]
[1745672051012,6.7441,148.23,148.21,25.02]
[1745672051211,5.28978001,148.24,148.19,6.7456]
[1745672051405,5.28978001,148.23,148.19,5.28978001]
[1745672051606,6.745,148.21,148.19,5.28978001]
[1745672051906,6.745,148.21,148.18,30.30978001]
[1745672052102,6.7455,148.2,148.18,30.30978001]
[1745672053612,6.745,148.21,148.18,30.30978001]
[1745672054812,6.745,148.21,148.18,37.05608001]
[1745672055210,5.28978001,148.22,148.18,30.30978001]
[1745672055714,6.7451,148.21,148.18,30.30978001]
[1745672056012,5.28978001,148.23,148.19,5.28978001]
[1745672056214,6.7448,148.22,148.19,5.28978001]
[1745672056915,5.28978001,148.22,148.18,30.30978001]
[1745672057114,5.28978001,148.21,148.17,5.28978001]
[1745672058516,6.7458,148.2,148.17,5.28978001]
[1745672059016,6.7464,148.18,148.16,5.28978001]
[1745672059515,6.7464,148.18,148.15,30.28978001]
[1745672059716,6.746,148.19,148.15,37.03728001]
[1745672060517,6.746,148.19,148.16,5.28978001]
[1745672061217,2.0,148.21,148.17,5.28978001]
[1745672061417,2.0,148.21,148.18,5.28978001]
[1745672061820,8.7452,148.21,148.18,5.28978001]
[1745672062115,25.0,148.22,148.19,5.28978001]
[1745672062318,5.28978001,148.24,148.19,5.28978001]
[1745672062721,5.28978001,148.23,148.18,5.28978001]
[1745672063520,6.7453,148.21,148.18,5.28978001]
[1745672064426,5.28978001,148.22,148.16,6.7471]
[1745672064720,5.28978001,148.22,148.17,5.28978001]
[1745672065221,6.7457,148.2,148.17,5.28978001]
[1745672065622,5.28978001,148.22,148.17,5.28978001]
[1745672065822,6.7456,148.2,148.17,5.28978001]
[1745672066122,5.28978001,148.22,148.17,5.28978001]
[1745672066422,6.746,148.19,148.17,5.28978001]
[1745672066917,1.9603,148.24,148.16,5.28978001]
[1745672066918,5.28978001,148.21,148.16,5.28978001]
[1745672067323,6.7468,148.17,148.16,5.28978001]
[1745672067919,6.7473,148.16,148.15,5.28978001]
[1745672068120,6.7473,148.16,148.14,5.28978001]
[1745672069024,6.7477,148.15,148.14,5.28978001]
[1745672070521,6.7474,148.16,148.14,5.28978001]
[1745672071325,6.7474,148.16,148.15,5.28978001]
[1745672072324,6.747,148.17,148.15,5.28978001]
[1745672072522,1.9945,148.2,148.16,5.28978001]
[1745672072826,1.9945,148.2,148.18,5.28978001]
[1745672073027,6.7466,148.18,148.17,5.28978001]
[1745672073326,1.9945,148.2,148.16,5.28978001]
[1745672073526,6.7469,148.17,148.16,5.28978001]
[1745672073926,5.28978001,148.18,148.14,5.28978001]
[1745672076530,6.7477,148.16,148.14,5.28978001]
[1745672077334,6.747,148.17,148.14,5.28978001]
[1745672077629,5.28978001,148.18,148.14,5.28978001]
[1745672078031,6.7475,148.16,148.14,5.28978001]
[1745672080231,6.7477,148.15,148.14,5.28978001]
[1745672080427,6.7477,148.15,148.12,31.7489]
[1745672080632,6.7477,148.15,148.13,5.28978001]
[1745672082234,5.28978001,148.18,148.13,12.03828001]
[1745672082433,5.28978001,148.19,148.14,5.28978001]
[1745672083134,5.28978001,148.17,148.12,5.28978001]
[1745672083531,6.7481,148.15,148.12,5.28978001]
[1745672084136,25.02,148.17,148.14,5.28978001]
[1745672084334,25.02,148.17,148.15,5.28978001]
[1745672084736,6.7473,148.16,148.15,5.28978001]
[1745672085035,6.7473,148.16,148.14,5.28978001]
[1745672090237,31.767,148.17,148.14,5.28978001]
[1745672090637,25.02,148.17,148.14,5.28978001]
[1745672092040,6.7473,148.16,148.14,5.28978001]
[1745672093133,25.02,148.17,148.09,25.02]
[1745672093437,5.28978001,148.15,148.1,5.28978001]
[1745672093838,6.7493,148.12,148.1,5.28978001]
[1745672094738,5.28978001,148.13,148.08,5.28978001]
[1745672095236,6.7498,148.11,148.08,5.28978001]
[1745672096039,5.28978001,148.13,148.08,5.28978001]
[1745672096237,5.28978001,148.13,148.08,12.04068001]
[1745672097141,6.7499,148.11,148.08,12.04068001]
[1745672098141,6.7499,148.11,148.09,6.7504]
[1745672098341,6.7492,148.12,148.1,5.28978001]
[1745672098545,6.7492,148.12,148.11,5.28978001]
[1745672104042,6.7492,148.12,148.1,5.28978001]
[1745672109247,6.7492,148.12,148.09,12.03998001]
[1745672109441,5.28978001,148.13,148.08,5.28978001]
[1745672109847,6.7502,148.1,148.08,5.28978001]
[1745672110046,5.28978001,148.13,148.08,5.28978001]
[1745672110443,6.7503,148.1,148.08,5.28978001]
[1745672111348,6.7497,148.11,148.08,5.28978001]
[1745672111748,25.0,148.13,148.08,5.28978001]
[1745672111944,6.7493,148.12,148.1,5.28978001]
[1745672115549,6.7495,148.11,148.1,5.28978001]
[1745672115950,25.0,148.13,148.09,5.28978001]
[1745672116553,6.7498,148.11,148.09,5.28978001]
[1745672119150,6.7498,148.11,148.09,12.04018001]
[1745672119445,6.7493,148.12,148.1,5.28978001]
[1745672120254,25.0,148.13,148.09,5.28978001]
[1745672120854,6.75,148.11,148.09,5.28978001]
[1745672121851,6.75,148.1,148.09,5.28978001]
[1745672122153,6.75,148.1,148.08,5.28978001]
[1745672122949,6.7497,148.11,148.08,12.04058001]
[1745672123145,6.7497,148.11,148.09,5.28978001]
[1745672123354,25.0,148.13,148.1,5.28978001]
[1745672123554,6.7494,148.12,148.1,5.28978001]
[1745672124963,6.7495,148.11,148.1,5.28978001]
[1745672125265,6.7495,148.11,148.09,5.28978001]
[1745672126064,6.75,148.1,148.09,5.28978001]
[1745672128769,6.7497,148.11,148.09,5.28978001]
[1745672128971,5.28978001,148.12,148.08,5.28978001]
[1745672129169,5.28978001,148.12,148.07,5.28978001]
[1745672129472,6.7507,148.09,148.07,5.28978001]
[1745672129670,5.28978001,148.12,148.07,5.28978001]
[1745672129965,6.7502,148.1,148.07,12.04078001]
[1745672130270,25.0,148.13,148.09,5.28978001]
[1745672131470,6.7494,148.12,148.09,5.28978001]
[1745672132271,25.0,148.13,148.09,5.28978001]
[1745672133971,6.7493,148.12,148.09,12.04018001]
[1745672137576,6.7493,148.12,148.09,6.7504]
[1745672137778,6.7493,148.12,148.09,12.04018001]
[1745672139472,1.9596,148.15,148.11,5.28978001]
[1745672139676,24.98,148.17,148.13,5.28978001]
[1745672139875,24.98,148.17,148.07,1.9784]